bitfinex/quotes_BTCUSD_20250901
["timestamp","ask_amount","ask_price","bid_price","bid_amount"]
[1756731812935,0.35201295,109310.0,109300.0,0.34256261]
[1756731813156,0.53497882,109310.0,109300.0,0.34256261]
[1756731813363,0.53597882,109310.0,109300.0,0.34256261]
[1756731813573,0.53597882,109310.0,109300.0,0.34058261]
[1756731813787,0.53597882,109310.0,109300.0,0.34256261]
[1756731814538,0.35301295,109310.0,109300.0,0.33738261]
[1756731814951,0.53597882,109310.0,109300.0,0.34059261]
[1756731815290,0.35301295,109310.0,109300.0,0.34268261]
[1756731815962,0.53597882,109310.0,109300.0,0.34059261]
[1756731816403,0.53597882,109310.0,109300.0,0.34268261]
[1756731818046,0.53597882,109310.0,109300.0,0.34059261]
[1756731818256,0.53597882,109310.0,109300.0,0.34268261]
[1756731820281,0.52185002,109310.0,109300.0,0.34268261]
[1756731820592,0.33888415,109310.0,109300.0,0.34268261]
[1756731821629,0.52185002,109310.0,109300.0,0.34268261]
[1756731822459,0.33888415,109310.0,109300.0,0.34268261]
[1756731822675,0.001,109310.0,109300.0,0.4345986]
[1756731823091,0.001,109310.0,109300.0,0.77248275]
[1756731823297,0.001,109310.0,109300.0,0.4345986]
[1756731824255,0.0002,109320.0,109310.0,0.18296587]
[1756731824456,0.0002,109320.0,109310.0,0.18846294]
[1756731824651,0.0002,109320.0,109310.0,0.18826587]
[1756731825195,0.0002,109320.0,109310.0,0.28018186]
[1756731826917,0.0012,109320.0,109310.0,0.28018186]
[1756731827412,0.0012,109320.0,109310.0,0.47552921]
[1756731830689,0.0012,109320.0,109310.0,0.32148921]
[1756731830921,0.0012,109320.0,109310.0,0.47548921]
[1756731832151,0.53600541,109320.0,109310.0,0.37823322]
[1756731832827,0.35305627,109320.0,109310.0,0.38353322]
[1756731833172,0.53600541,109320.0,109310.0,0.38353322]
[1756731834452,0.0012,109320.0,109310.0,0.38353322]
[1756731834849,0.35305627,109320.0,109310.0,0.38353322]
[1756731835599,0.53600541,109320.0,109310.0,0.22957322]
[1756731835810,0.35379186,109320.0,109310.0,0.38349322]
[1756731836211,0.17084272,109320.0,109310.0,0.38349322]
[1756731836417,0.35379186,109320.0,109310.0,0.38349322]
[1756731839099,0.18294914,109320.0,109310.0,0.38349322]
[1756731839303,0.53480541,109320.0,109310.0,0.04130735]
[1756731839508,0.18296587,109310.0,109300.0,0.00321]
[1756731839712,0.53482214,109310.0,109300.0,0.18619261]
[1756731839914,0.53482214,109310.0,109300.0,0.34003261]
[1756731840433,0.18298261,109300.0,109290.0,0.26582076]
[1756731840647,0.53483888,109300.0,109290.0,0.22442145]
[1756731841346,0.19242331,109300.0,109290.0,0.22442145]
[1756731841557,0.54427958,109300.0,109290.0,0.22442145]
[1756731842843,0.88427958,109300.0,109290.0,0.00014145]
[1756731843053,0.88427958,109300.0,109290.0,0.15410145]
[1756731843257,0.88527958,109300.0,109290.0,0.15410145]
[1756731843695,0.88527958,109300.0,109290.0,0.00014145]
[1756731843903,0.97719557,109300.0,109290.0,0.00014145]
[1756731844394,0.99813439,109300.0,109290.0,0.00014145]
[1756731845496,0.99713439,109300.0,109290.0,0.00014145]
[1756731845711,1.15317439,109300.0,109290.0,0.00014145]
[1756731845933,0.64727812,109300.0,109290.0,0.00014145]
[1756731846149,1.47755186,109300.0,109290.0,0.00014145]
[1756731846359,1.47955186,109300.0,109290.0,0.00014145]
[1756731850720,1.32551186,109300.0,109290.0,0.00014145]
[1756731850929,1.47963186,109300.0,109290.0,0.00014145]
[1756731851153,1.50713286,109300.0,109290.0,0.00014145]
[1756731852909,1.59904885,109300.0,109290.0,0.00014145]
[1756731853379,1.50713286,109300.0,109290.0,0.00014145]
[1756731855847,1.99933286,109300.0,109290.0,0.00014145]
[1756731856271,2.40710948,109300.0,109290.0,1e-08]
[1756731856494,2.41188309,109300.0,109290.0,1e-08]
[1756731857579,1.96968309,109300.0,109290.0,1e-08]
[1756731857791,2.06167908,109300.0,109290.0,1e-08]
[1756731858400,2.06646353,109300.0,109290.0,1e-08]
[1756731859085,1.05211292,109300.0,109290.0,1e-08]
[1756731859297,1.72834666,109300.0,109290.0,1e-08]
[1756731859958,1.57414666,109300.0,109290.0,1e-08]
[1756731860191,1.72830666,109300.0,109290.0,1e-08]
[1756731860966,1.72838666,109300.0,109290.0,1e-08]
[1756731861605,1.43223067,109300.0,109290.0,0.00527001]
[1756731861808,1.58643067,109300.0,109290.0,0.00527001]
[1756731862211,1.58643067,109300.0,109290.0,0.00314001]
[1756731862829,1.58643067,109300.0,109290.0,1e-08]
[1756731863058,1.58643067,109300.0,109290.0,0.00527001]
[1756731863200,1.67834666,109300.0,109290.0,0.00527001]
[1756731864210,1.17733498,109300.0,109290.0,0.00527001]
[1756731864413,1.02317498,109300.0,109290.0,0.00527001]
[1756731864621,1.19350019,109300.0,109290.0,0.00527001]
[1756731864789,1.35779731,109300.0,109290.0,0.00527001]
[1756731865203,1.53163263,109300.0,109290.0,0.00527001]
[1756731865844,1.37747263,109300.0,109290.0,0.00527001]
[1756731866193,1.48357671,109300.0,109290.0,0.00527001]
[1756731866396,1.50326387,109300.0,109290.0,0.00527001]
[1756731868453,0.67821106,109300.0,109290.0,0.00527001]
[1756731868673,0.22849104,109300.0,109290.0,0.00527001]
[1756731868882,0.00878445,109300.0,109290.0,0.18826936]
[1756731869089,0.19176706,109300.0,109290.0,0.18826936]
[1756731869510,0.00878445,109300.0,109290.0,0.18826936]
[1756731869720,0.18976706,109300.0,109290.0,0.18826936]
[1756731869924,0.52588393,109300.0,109290.0,0.18826936]
[1756731870102,0.34290132,109300.0,109290.0,0.18826936]
[1756731870307,0.34490132,109300.0,109290.0,0.18826936]
[1756731870717,0.34390132,109300.0,109290.0,0.18826936]
[1756731870922,0.52688393,109300.0,109290.0,0.18826936]
[1756731871122,0.52688393,109300.0,109290.0,0.19026936]
[1756731871334,0.18876706,109300.0,109290.0,0.19026936]
[1756731871551,0.52688393,109300.0,109290.0,0.19026936]
[1756731871760,0.52588393,109300.0,109290.0,0.19026936]
[1756731872132,0.18776706,109300.0,109290.0,0.19126936]
[1756731875909,0.18776706,109300.0,109290.0,0.34526936]
[1756731876607,0.53978735,109300.0,109290.0,0.00827001]
[1756731877056,0.53978735,109300.0,109290.0,0.0080339]
[1756731878016,0.53978735,109300.0,109290.0,0.0060339]
[1756731878265,0.54078735,109300.0,109290.0,0.0060339]
[1756731879020,0.54078735,109300.0,109290.0,0.0050339]
[1756731879952,0.54078735,109300.0,109290.0,0.00491231]
[1756731880175,0.54178735,109300.0,109290.0,0.00491231]
[1756731880847,0.54178735,109300.0,109290.0,0.18791166]
[1756731881469,0.54178735,109300.0,109290.0,0.00491231]
[1756731883169,0.54178735,109300.0,109290.0,0.18791166]
[1756731883386,0.54178735,109300.0,109290.0,0.00491231]
[1756731884038,0.54178735,109300.0,109290.0,0.18791166]
[1756731884475,0.54178735,109300.0,109290.0,0.00491231]
[1756731885510,0.54178735,109300.0,109290.0,0.18791166]
[1756731886379,0.54178735,109300.0,109290.0,0.15891231]
[1756731886615,0.54078735,109300.0,109290.0,0.15887231]
[1756731886825,0.54136735,109300.0,109290.0,0.00491231]
[1756731887042,0.54136735,109300.0,109290.0,0.00278231]
[1756731887256,0.54036735,109300.0,109290.0,0.00278231]
[1756731887685,0.54078735,109300.0,109290.0,0.00576231]
[1756731887954,0.54136735,109300.0,109290.0,0.00576231]
[1756731888194,0.54078735,109300.0,109290.0,0.00476231]
[1756731888647,0.54178735,109300.0,109290.0,0.00476231]
[1756731889366,0.54178735,109300.0,109280.0,0.15714]
[1756731889367,0.18299935,109290.0,109280.0,0.15714]
[1756731889593,0.53501964,109290.0,109280.0,0.15404]
[1756731889805,0.1830161,109280.0,109270.0,0.07346]
[1756731890007,0.53503639,109280.0,109270.0,0.15718]
[1756731890222,0.53503639,109280.0,109270.0,0.15916]
[1756731890428,0.1830496,109260.0,109250.0,0.32693267]
[1756731890637,0.1830496,109260.0,109250.0,0.2377623]
[1756731890842,0.53506989,109260.0,109250.0,0.0723]
[1756731891028,0.53506989,109260.0,109250.0,0.22948]
[1756731891633,0.53515601,109260.0,109250.0,0.15916]
[1756731891859,0.53515601,109260.0,109250.0,0.16416]
[1756731892115,0.18313572,109260.0,109250.0,0.16416]
[1756731892319,0.18313572,109260.0,109250.0,0.34222636]
[1756731892701,0.18313572,109260.0,109250.0,0.15916]
[1756731893130,0.18371572,109260.0,109250.0,0.00508]
[1756731893349,0.53573601,109260.0,109250.0,0.003]
[1756731893558,0.53573601,109260.0,109250.0,0.15708]
[1756731893775,0.18313572,109260.0,109250.0,0.16416]
[1756731894193,0.18313572,109260.0,109250.0,0.16216]
[1756731894397,0.18313572,109260.0,109250.0,0.34522636]
[1756731894814,0.18313572,109260.0,109250.0,0.16216]
[1756731895028,0.18313572,109260.0,109250.0,0.34522636]
[1756731895243,0.18313572,109260.0,109250.0,0.34222636]
[1756731895654,0.18313572,109260.0,109250.0,0.15916]
[1756731895871,0.18313572,109260.0,109250.0,0.34222636]
[1756731896512,0.18313572,109260.0,109250.0,0.34422636]
[1756731897717,8.612e-05,109260.0,109250.0,0.34422636]
[1756731897921,8.612e-05,109260.0,109250.0,0.68238908]
[1756731898140,8.612e-05,109260.0,109250.0,0.34422636]
[1756731898595,0.18313572,109260.0,109250.0,0.34422636]
[1756731899607,8.612e-05,109260.0,109250.0,0.34422636]
[1756731900681,8.612e-05,109260.0,109250.0,0.68238908]
[1756731901963,8.612e-05,109260.0,109250.0,0.34422636]
[1756731902175,8.612e-05,109260.0,109250.0,0.77430507]
[1756731903511,8.612e-05,109260.0,109250.0,0.43614235]
[1756731903708,8.612e-05,109260.0,109250.0,0.77430507]
[1756731905788,0.18371572,109260.0,109250.0,0.27698235]
[1756731906003,0.52187844,109260.0,109250.0,0.24815599]
[1756731906211,0.18371572,109260.0,109250.0,0.15624]
[1756731907032,0.18371572,109260.0,109250.0,0.34445636]
[1756731907211,0.18371572,109260.0,109250.0,0.00715]
[1756731907420,0.52187844,109260.0,109250.0,0.002]
[1756731908043,0.52187844,109260.0,109250.0,0.15632]
[1756731909145,0.18371572,109260.0,109250.0,0.16147]
[1756731909352,0.18371572,109260.0,109250.0,0.15632]
[1756731909566,0.18371572,109260.0,109250.0,0.15432]
[1756731909748,0.18371572,109260.0,109250.0,0.15733]
[1756731909906,0.18371572,109260.0,109250.0,0.15947]
[1756731910518,0.18313572,109260.0,109250.0,0.34253636]
[1756731910718,8.612e-05,109260.0,109250.0,0.34253636]
[1756731910935,0.00108612,109260.0,109250.0,0.34353636]
[1756731911240,0.00108612,109260.0,109250.0,0.77361507]
[1756731911463,8.612e-05,109260.0,109250.0,0.77361507]
[1756731911638,8.612e-05,109260.0,109250.0,1.11361507]
[1756731912235,8.612e-05,109260.0,109250.0,1.14111307]
[1756731913699,8.612e-05,109260.0,109250.0,1.70021461]
[1756731913904,8.612e-05,109260.0,109250.0,1.36105189]
[1756731914074,8.612e-05,109260.0,109250.0,1.37493329]
[1756731914394,8.612e-05,109260.0,109250.0,1.37993329]
[1756731914642,8.612e-05,109260.0,109250.0,1.37693329]
[1756731914825,8.612e-05,109260.0,109250.0,1.77493329]
[1756731915225,8.612e-05,109260.0,109250.0,1.78193329]
[1756731916408,8.612e-05,109260.0,109250.0,1.79043329]
[1756731916831,8.612e-05,109260.0,109250.0,1.78193329]
[1756731918533,0.2196372,109320.0,109300.0,0.18298261]
[1756731918534,0.21044769,109320.0,109300.0,0.18298261]
[1756731918764,0.07354631,109320.0,109310.0,0.33732587]
[1756731918980,0.07363257,109320.0,109310.0,0.34247587]
[1756731919167,0.00080626,109320.0,109310.0,0.34247587]
[1756731919844,8.626e-05,109320.0,109310.0,0.78643598]
[1756731920056,8.626e-05,109320.0,109310.0,0.42924186]
[1756731920057,0.00080626,109320.0,109310.0,0.42924186]
[1756731920916,0.00180626,109320.0,109310.0,0.42924186]
[1756731921136,0.00080626,109320.0,109310.0,0.42924186]
[1756731922141,0.00080626,109320.0,109310.0,0.27488186]
[1756731922374,0.00080626,109320.0,109310.0,0.42924186]
[1756731922962,0.00080626,109320.0,109310.0,0.27488186]
[1756731923141,0.00080626,109320.0,109310.0,0.42920186]
[1756731924496,0.00080626,109320.0,109310.0,0.43221186]
[1756731924695,0.00080626,109320.0,109310.0,0.43435186]
[1756731928032,8.626e-05,109320.0,109310.0,0.43435186]
[1756731930638,8.626e-05,109320.0,109310.0,0.28003186]
[1756731930817,0.1830354,109320.0,109310.0,0.43415186]
[1756731931066,8.626e-05,109320.0,109310.0,0.43415186]
[1756731931698,0.1830354,109320.0,109310.0,0.43415186]
[1756731932077,8.626e-05,109320.0,109310.0,0.43415186]
[1756731932716,0.1830354,109320.0,109310.0,0.43415186]
[1756731932866,0.1830354,109320.0,109310.0,0.43407186]
[1756731933587,0.1837554,109320.0,109310.0,0.43407186]
[1756731933774,0.1830354,109320.0,109310.0,0.43407186]
[1756731934176,8.626e-05,109320.0,109310.0,0.43407186]
[1756731935331,0.1830354,109320.0,109310.0,0.43407186]
[1756731936154,8.626e-05,109320.0,109310.0,0.43407186]
[1756731937657,0.1830354,109320.0,109310.0,0.43407186]
[1756731938880,0.1830354,109320.0,109310.0,0.43399186]
[1756731939492,8.626e-05,109320.0,109310.0,0.43399186]
[1756731939707,0.1830354,109320.0,109310.0,0.28003186]
[1756731939924,0.1830354,109320.0,109310.0,0.43395186]
[1756731941524,0.1837554,109320.0,109310.0,0.43395186]
[1756731942720,0.17847718,109320.0,109310.0,0.43395186]
[1756731943149,0.17847718,109320.0,109310.0,0.43387186]
[1756731945332,0.17847718,109320.0,109310.0,0.28003186]
[1756731945534,0.17847718,109320.0,109310.0,0.43387186]
[1756731945959,0.18296587,109310.0,109300.0,0.07036]
[1756731946186,0.52146985,109310.0,109300.0,0.2274]
[1756731946395,0.52146985,109310.0,109300.0,0.07036]
[1756731946600,0.52146985,109310.0,109300.0,0.2242]
[1756731946829,0.52146985,109310.0,109300.0,0.07036]
[1756731947053,0.52146985,109310.0,109300.0,0.2242]
[1756731947563,0.52146985,109310.0,109300.0,0.2262]
[1756731949037,0.52146985,109310.0,109300.0,0.2272]
[1756731949531,0.52146985,109310.0,109300.0,0.2252]
[1756731949742,0.52146985,109310.0,109300.0,0.2274]
[1756731951638,0.52146985,109310.0,109300.0,0.2242]
[1756731952067,0.52146985,109310.0,109300.0,0.22633]
[1756731952284,0.52146985,109310.0,109300.0,0.2274]
[1756731953318,0.52146985,109310.0,109300.0,0.22953]
[1756731953562,0.17847718,109320.0,109310.0,0.18296587]
[1756731953805,0.56894997,109330.0,109310.0,0.52607985]
[1756731953806,0.20367499,109330.0,109310.0,0.52607985]
[1756731954036,0.20367499,109330.0,109320.0,0.33998914]
[1756731954221,0.20367499,109330.0,109320.0,0.15917]
[1756731954668,0.20439499,109330.0,109320.0,0.15917]
[1756731954895,0.54217897,109330.0,109320.0,0.15917]
[1756731955395,0.54217897,109330.0,109320.0,0.15384]
[1756731956293,0.54217897,109330.0,109300.0,0.07356]
[1756731956294,0.18296587,109310.0,109300.0,0.07356]
[1756731956499,0.18296587,109310.0,109300.0,0.07364626]
[1756731956711,0.52146985,109310.0,109300.0,0.22748626]
[1756731957087,0.52146985,109310.0,109300.0,0.22961626]
[1756731957294,0.18296433,109320.0,109310.0,0.18296587]
[1756731957499,0.18296433,109320.0,109310.0,0.18829587]
[1756731957731,0.18296433,109320.0,109310.0,0.00533]
[1756731957939,0.18296587,109310.0,109300.0,0.22428626]
[1756731958173,0.52074985,109310.0,109300.0,0.23169626]
[1756731958300,0.18368587,109310.0,109300.0,0.23169626]
[1756731958501,0.18296587,109310.0,109300.0,0.23069626]
[1756731959510,0.18296587,109310.0,109300.0,0.22969626]
[1756731959928,0.18296433,109320.0,109310.0,0.18296587]
[1756731960137,0.18368433,109320.0,109310.0,0.00533]
[1756731960361,0.18296587,109310.0,109300.0,0.41054887]
[1756731960564,0.18296587,109310.0,109300.0,0.41267887]
[1756731960768,0.18296433,109320.0,109310.0,0.18296587]
[1756731960976,0.18296433,109320.0,109310.0,0.00533]
[1756731961195,0.18296587,109310.0,109300.0,0.25662887]
[1756731961432,0.18296587,109310.0,109300.0,0.41267887]
[1756731962238,0.18396433,109320.0,109300.0,0.41267887]
[1756731962440,0.52174831,109320.0,109310.0,0.0032]
[1756731962738,0.52246831,109320.0,109310.0,0.0032]
[1756731962944,0.52146831,109320.0,109310.0,0.0032]
[1756731963147,0.18296433,109320.0,109310.0,0.18829587]
[1756731963344,0.19428026,109330.0,109320.0,0.18294914]
[1756731963574,0.19428026,109330.0,109320.0,0.34227914]
[1756731964244,0.18513364,109330.0,109320.0,0.34227914]
[1756731966648,0.1851324,109330.0,109320.0,0.34227914]
[1756731966860,0.0022,109330.0,109320.0,0.34227914]
[1756731968472,0.1851324,109330.0,109320.0,0.34227914]
[1756731969324,0.1829324,109330.0,109320.0,0.34227914]
[1756731972808,0.55140846,109340.0,109320.0,0.34227914]
[1756731973026,0.00500602,109340.0,109330.0,0.59318872]
[1756731973251,0.00022403,109340.0,109330.0,0.68715471]
[1756731974350,0.00022403,109340.0,109330.0,0.84107471]
[1756731974553,0.00022403,109340.0,109330.0,0.68715471]
[1756731974757,0.00022403,109340.0,109330.0,0.84107471]
[1756731975421,0.00122403,109340.0,109330.0,0.84107471]
[1756731975597,0.00222403,109340.0,109330.0,0.84107471]
[1756731975832,0.00222403,109340.0,109330.0,0.68715471]
[1756731976041,0.00122403,109340.0,109330.0,0.84103471]
[1756731976446,0.00222403,109340.0,109330.0,0.84103471]
[1756731976685,0.00222403,109340.0,109330.0,0.50325073]
[1756731977740,0.00222403,109340.0,109330.0,0.84103471]
[1756731978358,0.00222403,109340.0,109330.0,0.68715471]
[1756731978584,0.00222403,109340.0,109330.0,0.84107471]
[1756731978796,0.00222403,109340.0,109330.0,0.34937073]
[1756731979001,0.00222403,109340.0,109330.0,0.50329073]
[1756731979206,0.00122403,109340.0,109330.0,0.50329073]
[1756731979396,0.00022403,109340.0,109330.0,0.50329073]
[1756731979602,0.00122403,109340.0,109330.0,0.50329073]
[1756731979820,0.00222403,109340.0,109330.0,0.34937073]
[1756731980021,0.00122403,109340.0,109330.0,0.50420839]
[1756731980225,0.00022403,109340.0,109330.0,0.50420839]
[1756731980626,0.00022403,109340.0,109330.0,0.50620839]
[1756731981458,0.00022403,109340.0,109330.0,0.84399237]
[1756731981838,0.00022403,109340.0,109330.0,0.84499237]
[1756731982245,0.00022403,109340.0,109330.0,0.84299237]
[1756731982454,0.00022403,109340.0,109330.0,0.35128839]
[1756731982663,0.00022403,109340.0,109330.0,0.50516839]
[1756731983441,0.00022403,109340.0,109330.0,0.50716839]
[1756731985668,0.00022403,109340.0,109330.0,0.50712839]
[1756731987702,0.00022403,109340.0,109330.0,0.84491237]
[1756731989516,0.00022403,109340.0,109330.0,0.85341237]
[1756731991729,0.00022403,109340.0,109330.0,0.36178839]
[1756731991933,0.00022403,109340.0,109330.0,0.84491237]
[1756731993836,0.00022403,109340.0,109330.0,0.50712839]
[1756731994043,0.00022403,109340.0,109330.0,0.85341237]
[1756731994625,0.00022403,109340.0,109330.0,0.84491237]
[1756731998182,0.00022403,109340.0,109330.0,0.50712839]
[1756731998370,0.00022403,109340.0,109330.0,0.84491237]
[1756731999623,0.00022403,109340.0,109330.0,0.85341237]
[1756732000455,0.00022403,109340.0,109330.0,0.51558839]
[1756732000582,0.00022403,109340.0,109330.0,0.85337237]
[1756732003123,0.00022403,109340.0,109330.0,0.84487237]
[1756732006449,0.00022403,109340.0,109330.0,0.50708839]
[1756732006772,0.00022403,109340.0,109330.0,0.84487237]
[1756732007592,0.00022403,109340.0,109330.0,0.35328839]
[1756732007764,0.00022403,109340.0,109330.0,0.50712839]
[1756732007958,0.00022403,109340.0,109330.0,0.69107237]
[1756732008161,0.00094403,109340.0,109330.0,0.50511839]
[1756732008386,0.00094403,109340.0,109330.0,0.84290237]
[1756732008988,0.00094403,109340.0,109330.0,0.84493237]
[1756732009350,0.00094403,109340.0,109330.0,0.50714839]
[1756732009554,0.00094403,109340.0,109330.0,0.69105237]
[1756732009737,0.00094403,109340.0,109330.0,0.84493237]
[1756732009967,0.00094403,109340.0,109330.0,0.50511839]
[1756732010144,0.00094403,109340.0,109330.0,0.50714839]
[1756732010381,0.00094403,109340.0,109330.0,0.84493237]
[1756732010582,0.00022403,109340.0,109330.0,0.84493237]
[1756732011970,0.00022403,109340.0,109330.0,0.84439277]
[1756732014236,0.00022403,109340.0,109330.0,0.69051277]
[1756732014470,0.00022403,109340.0,109330.0,0.84475277]
[1756732014597,0.00022403,109340.0,109330.0,0.69051277]
[1756732014811,0.00022403,109340.0,109330.0,0.84475277]
[1756732016594,0.00022403,109340.0,109330.0,0.69051277]
[1756732016958,0.00022403,109340.0,109330.0,0.84471277]
[1756732017637,0.21662525,109360.0,109350.0,0.18289894]
[1756732017798,0.21662525,109360.0,109350.0,0.40737894]
[1756732017995,0.21734525,109360.0,109350.0,0.40737894]
[1756732018920,0.21781638,109360.0,109350.0,0.40737894]
[1756732019049,0.21881638,109360.0,109350.0,0.40737894]
[1756732019461,0.21981638,109360.0,109350.0,0.40737894]
[1756732019867,0.21355306,109360.0,109350.0,0.41035894]
[1756732020351,0.21255306,109360.0,109350.0,0.41035894]
[1756732020559,0.54978704,109360.0,109350.0,0.22448]
[1756732021163,0.02795013,109360.0,109350.0,0.50430493]
[1756732021366,0.00047113,109360.0,109350.0,0.84208891]
[1756732021771,0.00047113,109360.0,109350.0,0.88393298]
[1756732022004,0.00047113,109360.0,109350.0,0.546149]
[1756732022424,0.00047113,109360.0,109350.0,0.88393298]
[1756732023328,0.00047113,109360.0,109350.0,0.88493298]
[1756732023570,0.00047113,109360.0,109350.0,0.88693298]
[1756732023775,0.00047113,109360.0,109350.0,0.549149]
[1756732027196,0.33897511,109360.0,109350.0,0.549109]
[1756732027421,0.33847511,109360.0,109350.0,0.392919]
[1756732027628,0.00069113,109360.0,109350.0,0.549249]
[1756732027845,0.33847511,109360.0,109350.0,0.547139]
[1756732028071,0.33847511,109360.0,109350.0,0.549249]
[1756732028289,0.33847511,109360.0,109350.0,0.547139]
[1756732029118,0.00069113,109360.0,109350.0,0.549249]
[1756732029543,0.00067,109360.0,109350.0,0.549249]
[1756732029753,0.5213362,109360.0,109350.0,0.392979]
[1756732029972,0.33845398,109360.0,109350.0,0.544099]
[1756732030180,0.5213362,109360.0,109350.0,0.544099]
[1756732030387,0.5213362,109360.0,109350.0,0.41033894]
[1756732031450,0.5213362,109360.0,109350.0,0.22744]
[1756732031682,0.5213362,109360.0,109350.0,0.07328]
[1756732031900,0.8617562,109360.0,109350.0,0.22744]
[1756732032106,1.19954018,109360.0,109350.0,0.15716]
[1756732032285,1.22702218,109360.0,109350.0,0.003]
[1756732032506,1.22702218,109360.0,109350.0,0.1572]
[1756732032715,1.22702218,109360.0,109350.0,0.1562]
[1756732032854,1.22702218,109360.0,109350.0,0.002]
[1756732033054,1.22702218,109360.0,109350.0,0.1562]
[1756732033294,1.23616629,109360.0,109330.0,0.07028]
[1756732033473,0.52069965,109340.0,109330.0,0.07028]
[1756732033864,0.52069965,109340.0,109330.0,0.22452]
[1756732034038,0.52136965,109340.0,109330.0,0.22452]
[1756732034275,0.54885465,109340.0,109330.0,0.22452]
[1756732035229,0.54927465,109340.0,109330.0,0.22452]
[1756732036023,0.18294914,109320.0,109310.0,0.52653401]
[1756732036238,0.52073312,109320.0,109310.0,0.7748]
[1756732036870,0.52140312,109320.0,109310.0,0.54134599]
[1756732037021,0.52140312,109320.0,109310.0,0.72431186]
[1756732037223,0.52073312,109320.0,109310.0,0.72478299]
[1756732037426,0.52073312,109320.0,109310.0,0.72474299]
[1756732037666,0.52073312,109320.0,109310.0,0.57354299]
[1756732037872,0.52073312,109320.0,109310.0,0.72774299]
[1756732038039,0.33778398,109320.0,109310.0,0.72774299]
[1756732038598,0.52073312,109320.0,109310.0,0.72774299]
[1756732039265,0.18294746,109330.0,109310.0,0.72774299]
[1756732039472,0.52073144,109330.0,109320.0,0.00304]
[1756732039690,0.52073144,109330.0,109320.0,0.18809914]
[1756732039912,0.52140144,109330.0,109320.0,0.00515]
[1756732040767,0.52140144,109330.0,109320.0,0.00304]
[1756732042391,0.52073144,109330.0,109320.0,0.18809914]
[1756732042618,0.21040763,109340.0,109330.0,0.1829324]
[1756732042812,0.027485,109340.0,109330.0,0.41484905]
[1756732043014,0.52068489,109350.0,109340.0,0.18291567]
[1756732043015,0.86068292,109350.0,109340.0,0.18291567]
[1756732043291,0.027484,109350.0,109340.0,0.18520211]
[1756732043507,0.5206662,109360.0,109340.0,0.18806567]
[1756732043712,0.8881462,109360.0,109350.0,0.15728]
[1756732043974,0.8888162,109360.0,109350.0,0.15424]
[1756732044186,0.8888162,109360.0,109350.0,0.33713894]
[1756732044395,0.8888162,109360.0,109350.0,0.34017894]
[1756732044603,0.8888162,109360.0,109350.0,0.34228894]
[1756732045015,0.8889454,109360.0,109350.0,0.34228894]
[1756732045428,0.8889454,109360.0,109350.0,0.15424]
[1756732046012,0.36539318,109360.0,109350.0,0.34457517]
[1756732046218,0.36539318,109360.0,109350.0,0.34228894]
[1756732046597,0.36539318,109360.0,109350.0,0.41256894]
[1756732046598,0.0276092,109360.0,109350.0,0.41256894]
[1756732046799,0.0001292,109360.0,109350.0,0.41256894]
[1756732048426,0.33858318,109360.0,109350.0,0.25317894]
[1756732048632,0.5214654,109360.0,109350.0,0.2244]
[1756732049057,0.5214654,109360.0,109350.0,0.40940894]
[1756732049293,0.33791318,109360.0,109350.0,0.41244894]
[1756732049672,0.5207954,109360.0,109350.0,0.41244894]
[1756732049896,0.33791318,109360.0,109350.0,0.41244894]
[1756732050101,0.5207954,109360.0,109350.0,0.25832894]
[1756732050314,0.5214654,109360.0,109350.0,0.41248894]
[1756732051101,0.5214654,109360.0,109350.0,0.07543]
[1756732051303,0.5214654,109360.0,109350.0,0.41037894]
[1756732051880,0.5214654,109360.0,109350.0,0.41248894]
[1756732052152,0.5214654,109360.0,109350.0,0.25832894]
[1756732052329,0.5214654,109360.0,109350.0,0.41248894]
[1756732052681,0.18301142,109360.0,109350.0,0.41248894]
[1756732052800,0.5207954,109360.0,109350.0,0.41248894]
[1756732053666,0.5214654,109360.0,109350.0,0.25832894]
[1756732053811,0.5214654,109360.0,109350.0,0.41244894]
[1756732054031,0.18368142,109360.0,109350.0,0.41244894]
[1756732054425,0.5214654,109360.0,109350.0,0.41244894]
[1756732054601,0.5214654,109360.0,109350.0,0.40729894]
[1756732054811,0.5214654,109360.0,109350.0,0.41258894]
[1756732055793,0.0001292,109360.0,109350.0,0.41258894]
[1756732056003,0.33791318,109360.0,109350.0,0.50450493]
[1756732056481,0.33791318,109360.0,109350.0,0.35038493]
[1756732056482,0.0001292,109360.0,109350.0,0.35038493]
[1756732056684,0.0001292,109360.0,109350.0,0.50446493]
[1756732056888,0.33791318,109360.0,109350.0,0.50446493]
[1756732057092,0.0001292,109360.0,109350.0,0.50446493]
[1756732057465,0.33791318,109360.0,109350.0,0.50446493]
[1756732058937,0.33791318,109360.0,109350.0,0.35038493]
[1756732059095,0.33791318,109360.0,109350.0,0.50442493]
[1756732059294,0.33791318,109360.0,109350.0,0.50642493]
[1756732059811,0.33791318,109360.0,109350.0,0.50742493]
[1756732060254,0.0001292,109360.0,109350.0,0.50742493]
[1756732060425,0.33791318,109360.0,109350.0,0.50742493]
[1756732061740,0.0001292,109360.0,109350.0,0.50742493]
[1756732062455,0.0001292,109360.0,109350.0,0.50746493]
[1756732063995,0.18368142,109360.0,109350.0,0.35132493]
[1756732064228,0.0001292,109360.0,109350.0,0.50742493]
[1756732064896,0.0001292,109360.0,109350.0,0.84520891]
[1756732065890,0.0001292,109360.0,109350.0,0.50742493]
[1756732066070,0.0001292,109360.0,109350.0,0.84520891]
[1756732067599,0.0001292,109360.0,109350.0,0.50742493]
[1756732067930,0.0001292,109360.0,109350.0,0.84520891]
[1756732071119,0.0001292,109360.0,109350.0,0.35338493]
[1756732071325,0.0001292,109360.0,109350.0,0.84516891]
[1756732072337,0.0001292,109360.0,109350.0,0.35338493]
[1756732072549,0.0001292,109360.0,109350.0,0.50738493]
[1756732072976,0.0001292,109360.0,109350.0,0.84516891]
[1756732074211,0.0001292,109360.0,109350.0,0.84520891]
[1756732075895,0.0001292,109360.0,109350.0,0.50738493]
[1756732076108,0.0001292,109360.0,109350.0,0.84516891]
[1756732080034,0.0001292,109360.0,109350.0,0.50738493]
[1756732080525,0.0001292,109360.0,109350.0,0.84516891]
[1756732081260,0.18368142,109360.0,109350.0,0.35338493]
[1756732081463,0.18368142,109360.0,109350.0,0.50197493]
[1756732081640,0.18368142,109360.0,109350.0,0.50520493]
[1756732082084,0.5214654,109360.0,109350.0,0.50520493]
[1756732082451,0.33858318,109360.0,109350.0,0.50520493]
[1756732082658,0.5214654,109360.0,109350.0,0.50520493]
[1756732082860,0.33858318,109360.0,109350.0,0.50520493]
[1756732083067,0.33858318,109360.0,109350.0,0.50726493]
[1756732083630,0.5214654,109360.0,109350.0,0.50197493]
[1756732083844,0.5214654,109360.0,109350.0,0.07328]
[1756732084064,0.5214654,109360.0,109350.0,0.41001894]
[1756732084065,0.18368142,109360.0,109350.0,0.41001894]
[1756732084305,0.5214654,109360.0,109350.0,0.41001894]
[1756732084496,0.5214654,109360.0,109350.0,0.41324894]
[1756732084747,0.5214654,109360.0,109350.0,0.41001894]
[1756732086182,0.5207954,109360.0,109350.0,0.41522894]
[1756732086385,0.5214654,109360.0,109350.0,0.41001894]